bitfinex-derivatives/quotes_SOLF0:USTF0_20241016
["timestamp","ask_amount","ask_price","bid_price","bid_amount"]
[1729089015144,2.6326,155.66,155.64,3.2126]
[1729089015542,2.6326,155.66,155.61,3.26689902]
[1729089015742,2.6326,155.66,155.58,6.6]
[1729089015944,6.6,155.7,155.58,6.6]
[1729089016137,2.7628,155.74,155.59,29.62]
[1729089016338,2.7628,155.74,155.62,29.62]
[1729089016538,2.7628,155.74,155.66,29.62]
[1729089016739,6.6,155.8,155.66,29.62]
[1729089017050,3.2098,155.79,155.74,3.2106]
[1729089017248,2.796,155.8,155.72,6.6]
[1729089017842,2.796,155.8,155.69,6.6]
[1729089018041,6.6,155.79,155.69,8.20548227]
[1729089018250,3.2102,155.76,155.69,9.8115]
[1729089018746,29.62,155.78,155.63,1.0]
[1729089018948,29.62,155.78,155.64,6.6]
[1729089019244,29.62,155.78,155.65,6.6]
[1729089019440,3.2112,155.72,155.66,3.2121]
[1729089019641,29.62,155.75,155.65,6.6]
[1729089019838,7.9221,155.74,155.65,6.6]
[1729089020047,3.2115,155.7,155.64,3.2125]
[1729089020253,7.9221,155.74,155.62,6.6]
[1729089020948,7.9221,155.74,155.62,36.22]
[1729089021141,3.2112,155.71,155.66,3.2122]
[1729089021347,7.9221,155.74,155.62,6.6]
[1729089021544,7.9221,155.74,155.62,36.22]
[1729089022251,11.1328,155.74,155.69,3.2116]
[1729089022451,1.3221,155.74,155.62,36.22]
[1729089022651,3.212,155.68,155.62,9.7929]
[1729089022841,1.3221,155.74,155.62,6.58]
[1729089023240,32.416,155.8,155.67,29.62]
[1729089023546,1.346,155.8,155.68,6.58]
[1729089023751,3.2098,155.78,155.68,6.58]
[1729089024546,3.21,155.77,155.68,6.58]
[1729089024748,30.966,155.8,155.68,6.58]
[1729089025243,29.62,155.77,155.68,6.58]
[1729089025557,29.62,155.74,155.61,3.2917978]
[1729089025852,29.62,155.71,155.58,69.44]
[1729089026150,1.4094,155.7,155.6,6.58]
[1729089026553,4.6208,155.7,155.6,9.81833697]
[1729089026749,1.4094,155.7,155.6,9.81833697]
[1729089027152,3.2116,155.69,155.64,3.2125]
[1729089027654,3.2119,155.68,155.63,3.2128]
[1729089029045,2.7461,155.73,155.66,3.2121]
[1729089029046,3.2114,155.71,155.66,3.2121]
[1729089029451,2.7461,155.73,155.65,6.58]
[1729089029956,3.2111,155.72,155.67,3.2119]
[1729089030156,2.7461,155.73,155.67,3.2119]
[1729089030348,3.2123,155.66,155.62,3.213]
[1729089030662,32.3661,155.73,155.61,6.58]
[1729089031158,3.2123,155.66,155.61,9.7931]
[1729089031358,2.7461,155.73,155.61,9.82073479]
[1729089031757,3.2116,155.7,155.61,9.82073479]
[1729089031958,2.7461,155.73,155.62,29.62]
[1729089032158,3.2116,155.7,155.65,3.2124]
[1729089032354,2.7461,155.73,155.65,3.2124]
[1729089032653,3.2115,155.7,155.64,3.2126]
[1729089032860,2.7461,155.73,155.64,3.2126]
[1729089033062,32.3661,155.73,155.61,6.58]
[1729089033257,3.2121,155.67,155.63,3.2128]
[1729089033455,32.3661,155.73,155.61,6.58]
[1729089033653,29.62,155.7,155.58,69.44]
[1729089033861,1.4333,155.69,155.53,29.62]
[1729089034064,29.62,155.67,155.54,1.1809098]
[1729089034256,29.62,155.67,155.54,6.58]
[1729089034564,3.2136,155.6,155.55,3.2144]
[1729089035159,4.5608,155.64,155.59,3.2136]
[1729089035362,1.348,155.64,155.54,6.58]
[1729089035665,1.348,155.64,155.55,3.17381808]
[1729089035862,1.348,155.64,155.6,3.2134]
[1729089036065,1.348,155.64,155.54,6.58]
[1729089036266,1.348,155.64,155.54,9.79938054]
[1729089036568,4.5608,155.64,155.54,9.79938054]
[1729089036963,1.348,155.64,155.61,3.2132]
[1729089037360,1.348,155.64,155.54,9.79938054]
[1729089037565,1.348,155.64,155.6,3.2134]
[1729089038159,6.58,155.68,155.56,48.15]
[1729089038364,7.8951,155.68,155.56,48.15]
[1729089038666,1.3151,155.68,155.64,3.2126]
[1729089038866,1.3151,155.68,155.61,6.58]
[1729089039667,3.2125,155.65,155.61,9.7932]
[1729089039867,1.3151,155.68,155.61,9.7932]
[1729089040065,1.3151,155.68,155.61,6.58]
[1729089041771,1.4508,155.72,155.62,48.15]
[1729089042067,3.2118,155.69,155.64,3.2126]
[1729089042275,1.4508,155.72,155.59,48.15]
[1729089042472,1.4508,155.72,155.6,6.58]
[1729089042473,1.4263,155.68,155.6,6.58]
[1729089042669,3.2126,155.65,155.61,3.2133]
[1729089042871,1.4263,155.68,155.6,6.58]
[1729089043064,1.4263,155.68,155.6,9.86868658]
[1729089043065,4.6382,155.68,155.6,9.86868658]
[1729089043369,1.4263,155.68,155.6,58.01868658]
[1729089043567,3.2121,155.67,155.6,54.73]
[1729089043767,1.4263,155.68,155.6,54.73]
[1729089044368,1.4263,155.68,155.6,6.58]
[1729089044671,3.2124,155.66,155.62,3.213]
[1729089045367,3.2121,155.67,155.63,3.2128]
[1729089045563,1.4263,155.68,155.6,6.58]
[1729089046373,3.2122,155.67,155.62,3.213]
[1729089046873,3.2123,155.66,155.62,3.213]
[1729089047770,1.4263,155.68,155.65,3.2123]
[1729089047970,1.4263,155.68,155.6,6.58]
[1729089048470,4.6381,155.68,155.64,3.2125]
[1729089048671,1.4508,155.72,155.62,48.15]
[1729089049074,1.3811,155.76,155.66,48.15]
[1729089049268,1.3811,155.76,155.67,6.58]
[1729089049577,3.2108,155.73,155.69,3.2115]
[1729089050167,1.3811,155.76,155.62,48.15]
[1729089050168,1.3811,155.76,155.64,6.58]
[1729089050362,1.3811,155.76,155.65,3.2123]
[1729089050363,3.2115,155.7,155.65,3.2123]
[1729089050569,1.4149,155.72,155.65,3.2123]
[1729089050765,1.4149,155.72,155.64,6.58]
[1729089050966,1.4276,155.71,155.61,6.58]
[1729089051175,8.0076,155.71,155.58,3.18940911]
[1729089051368,3.2123,155.66,155.62,3.213]
[1729089051971,3.2119,155.68,155.64,3.2126]
[1729089053179,8.0076,155.71,155.61,3.25069436]
[1729089053372,8.0076,155.71,155.63,48.15]
[1729089053573,1.4276,155.71,155.63,48.15]
[1729089053873,4.6389,155.71,155.63,48.15]
[1729089054069,1.4276,155.71,155.63,48.15]
[1729089054669,3.2117,155.69,155.65,3.2123]
[1729089055375,1.4149,155.72,155.68,3.2116]
[1729089056173,4.626,155.72,155.68,3.2116]
[1729089056977,3.2114,155.71,155.67,3.212]
[1729089058775,3.2114,155.71,155.65,6.58]
[1729089058776,3.2114,155.71,155.68,3.2118]
[1729089058971,1.386,155.75,155.65,36.18]
[1729089059175,2.7038,155.76,155.65,36.18]
[1729089059579,5.9141,155.76,155.65,36.18]
[1729089059879,5.9141,155.76,155.72,3.2109]
[1729089061575,2.7038,155.76,155.69,3.2124735]
[1729089061780,3.2101,155.77,155.74,3.2105]
[1729089062276,7.9864,155.79,155.7,6.58]
[1729089062676,7.9864,155.79,155.67,6.58]
[1729089063282,3.2107,155.74,155.71,3.2112]
[1729089063480,7.9864,155.79,155.67,6.58]
[1729089063776,7.9864,155.79,155.65,29.6]
[1729089064084,29.6,155.74,155.59,29.6]
[1729089064280,3.2117,155.69,155.62,6.58]
[1729089064679,9.3578,155.73,155.62,6.58]
[1729089065183,9.3578,155.73,155.59,29.6]
[1729089065184,29.6,155.71,155.56,29.6]
[1729089065383,1.3882,155.7,155.59,6.58]
[1729089065586,3.2128,155.64,155.57,3.2141]
[1729089065885,3.2128,155.64,155.53,2.8910603]
[1729089065886,6.58,155.64,155.56,3.28687798]
[1729089066074,29.6,155.68,155.54,29.6]
[1729089066271,3.2127,155.64,155.54,32.88655678]
[1729089066475,6.58,155.67,155.54,32.88655678]
[1729089066675,3.213,155.63,155.58,3.2138]
[1729089066878,2.7485,155.66,155.54,32.88655678]
[1729089067285,3.2135,155.6,155.56,3.2142]
[1729089067485,3.2135,155.6,155.54,39.46655678]
[1729089067780,2.7485,155.66,155.53,3.2148]
[1729089067781,3.2139,155.58,155.53,3.2148]
[1729089067972,6.58,155.62,155.5,6.58]
[1729089068178,6.58,155.62,155.5,36.18]
[1729089068387,3.2136,155.6,155.55,3.2145]
[1729089068578,6.58,155.62,155.5,36.18]
[1729089068886,6.58,155.62,155.5,29.6]
[1729089069086,6.58,155.62,155.48,6.58]
[1729089069087,1.4026,155.61,155.48,6.58]
[1729089069285,1.4026,155.61,155.45,9.79086765]
[1729089069286,29.6,155.6,155.45,9.79086765]
[1729089069483,3.2153,155.52,155.47,3.2161]
[1729089069781,6.58,155.56,155.45,6.58]
[1729089069985,9.2543,155.55,155.48,3.2158]
[1729089070280,9.2543,155.55,155.41,6.58]
[1729089070585,9.2543,155.55,155.42,29.6]
[1729089071085,38.8543,155.55,155.41,3.28565918]
[1729089071385,38.8543,155.55,155.39,29.6]
[1729089071681,3.2152,155.52,155.47,3.2162]
[1729089071986,9.2543,155.55,155.42,29.6]
[1729089072186,9.2543,155.55,155.45,3.2164]
[1729089072582,3.2155,155.51,155.46,3.2164]
[1729089072783,9.2543,155.55,155.46,3.2164]
[1729089072982,9.2543,155.55,155.42,32.85143114]
[1729089073182,9.2543,155.55,155.39,29.6]
[1729089073379,29.6,155.54,155.38,6.58]
[1729089073690,3.217,155.43,155.37,3.2181]
[1729089073886,3.217,155.43,155.34,6.58]
[1729089074191,3.217,155.43,155.37,3.2181]
[1729089074583,3.217,155.43,155.34,6.58]
[1729089074783,3.2172,155.42,155.37,3.2182]
[1729089074982,29.6,155.45,155.31,65.79342397]
[1729089075183,6.58,155.44,155.31,65.79342397]
[1729089075497,6.58,155.44,155.3,76.0]
[1729089075787,29.6,155.42,155.27,32.77225403]
[1729089075982,29.6,155.42,155.28,3.26812946]
[1729089076187,29.6,155.45,155.27,29.6]
[1729089076382,29.6,155.41,155.27,32.82887845]
[1729089076582,4.099,155.47,155.3,29.6]
[1729089076785,6.58,155.46,155.31,6.58]
[1729089076991,29.6,155.42,155.27,3.29644167]
[1729089077186,6.58,155.41,155.27,6.58]
[1729089077492,3.219,155.34,155.28,3.22]
[1729089077882,6.58,155.35,155.23,29.6]
[1729089078186,6.58,155.35,155.23,6.58]
[1729089078581,6.58,155.35,155.2,29.6]
[1729089078582,3.2198,155.3,155.24,3.2208]
[1729089078988,6.58,155.35,155.22,3.15948747]
[1729089079188,6.58,155.35,155.21,6.58]
[1729089079390,6.58,155.35,155.22,1.18331766]
[1729089079693,3.2193,155.32,155.26,3.2203]
[1729089079896,4.1626,155.38,155.23,29.6]
[1729089080097,6.58,155.36,155.23,29.6]
[1729089080693,9.7986,155.36,155.3,3.2195]
[1729089080892,6.58,155.36,155.23,36.18]
[1729089081090,6.58,155.36,155.24,1.18318226]
[1729089081393,3.2188,155.35,155.29,3.2198]
[1729089081598,6.58,155.36,155.23,36.18]
[1729089081893,6.58,155.36,155.24,1.18318768]
[1729089083198,3.2187,155.35,155.24,1.18318768]
[1729089083599,3.2184,155.37,155.31,3.2193]
[1729089083902,10.7426,155.38,155.29,3.22709419]
[1729089084091,3.2188,155.35,155.29,3.2197]
[1729089084395,10.7426,155.38,155.23,36.18]
[1729089084699,10.7426,155.38,155.27,3.2203]
[1729089084700,3.2194,155.32,155.27,3.2203]
[1729089084994,6.6,155.32,155.2,29.6]
[1729089085192,6.6,155.32,155.21,7.78344415]
[1729089085398,6.6,155.32,155.22,1.18344415]
[1729089085700,3.2198,155.3,155.25,3.2207]
[1729089086000,3.2195,155.31,155.24,3.2209]
[1729089086195,6.6,155.32,155.24,3.2209]
[1729089086402,6.6,155.32,155.21,9.79050701]
[1729089086699,3.2198,155.3,155.21,9.79050701]
[1729089087196,3.2198,155.3,155.21,3.19050701]
[1729089087398,3.2202,155.28,155.23,3.221]
[1729089087605,29.6,155.34,155.22,3.1924387]
[1729089087802,6.6,155.33,155.2,29.6]
[1729089087998,9.8192,155.33,155.28,3.22]
[1729089088198,6.6,155.33,155.22,3.16082699]
[1729089088503,6.6,155.33,155.2,29.6]
[1729089088801,6.6,155.33,155.21,1.18346799]
[1729089089005,6.6,155.33,155.22,3.18723431]
[1729089089605,6.6,155.33,155.23,1.1834608]
[1729089089906,6.6,155.33,155.22,3.22072652]
[1729089090100,6.6,155.33,155.23,1.18344779]
[1729089090297,3.2194,155.32,155.27,3.2202]
[1729089090496,6.6,155.33,155.2,29.6]
[1729089090697,3.2195,155.31,155.26,3.2204]
[1729089091409,3.2199,155.29,155.24,3.2208]
[1729089091593,6.6,155.33,155.2,29.6]
[1729089091901,3.2203,155.27,155.22,3.2212]
[1729089092397,6.6,155.28,155.23,3.2211]
[1729089092706,6.6,155.28,155.18,6.6]
[1729089093004,11.2087,155.3,155.25,3.2206]
[1729089093607,3.22,155.29,155.25,3.2206]
[1729089094404,7.989,155.3,155.15,6.6]
[1729089094602,2.8314,155.28,155.16,1.18377562]
[1729089094910,2.8314,155.28,155.19,3.2218]
[1729089095201,2.8314,155.28,155.09,6.4479]
[1729089095202,29.6,155.23,154.99,72.1086365]
[1729089095405,7.9677,155.22,155.05,29.6]
[1729089095707,7.9677,155.22,155.06,1.18398824]
[1729089095905,3.2223,155.18,155.07,1.18398824]
[1729089096210,6.6,155.21,155.08,1.18398824]
[1729089096396,3.2231,155.14,155.09,3.2239]
[1729089096595,6.6,155.16,155.05,32.88481257]
[1729089096797,6.6,155.16,155.06,1.18444456]
[1729089097010,8.0418,155.18,155.06,1.18444456]
[1729089097500,8.0418,155.18,155.12,3.2234]
[1729089097697,8.0418,155.18,155.05,32.88481257]
[1729089097896,3.2225,155.17,155.12,3.2234]
[1729089098096,3.2225,155.17,155.06,1.18444348]
[1729089098097,3.2225,155.17,155.05,32.88481257]
[1729089098302,3.2225,155.17,155.06,1.18443987]
[1729089098510,3.2225,155.17,155.09,3.224]
[1729089098710,8.0418,155.18,155.1,1.18443987]
[1729089098910,8.0418,155.18,155.06,1.1844555]
[1729089099108,3.2229,155.15,155.09,3.2239]
[1729089099605,8.0418,155.18,155.09,3.2239]
[1729089099802,3.2229,155.15,155.09,3.2239]
[1729089100004,8.0418,155.18,155.05,3.28481257]
[1729089100198,29.6,155.17,155.06,1.1845902]
[1729089100506,29.6,155.13,154.99,6.6]
[1729089100711,7.9845,155.12,155.0,1.18484867]
[1729089100912,7.9845,155.12,155.0,4.44758239]
[1729089101203,7.9845,155.12,155.01,1.18484867]
[1729089101509,7.9845,155.12,155.02,1.18484867]
[1729089101812,11.2081,155.12,155.07,3.2243]
[1729089102008,4.6081,155.12,155.07,3.2243]
[1729089102212,7.9845,155.12,154.99,9.86499032]
[1729089102414,7.9845,155.12,155.01,29.6]
[1729089102718,1.3845,155.12,155.02,1.18501679]
[1729089102910,6.6,155.15,155.11,3.2235]
[1729089103104,6.6,155.15,155.04,29.6]
[1729089103105,1.4474,155.17,155.05,6.6]
[1729089103310,1.4474,155.17,155.06,1.18469493]
[1729089103528,3.2227,155.16,155.11,3.2236]
[1729089103713,1.4474,155.17,155.05,6.6]
[1729089104013,3.2229,155.15,155.1,3.2238]
[1729089104316,1.4474,155.17,155.05,6.6]
[1729089104516,3.2231,155.14,155.1,3.2238]
[1729089104912,1.4418,155.18,155.07,3.17346741]
[1729089105111,1.4418,155.18,155.16,3.2225]
[1729089105311,1.4418,155.18,155.05,6.6]
[1729089105512,1.4418,155.18,155.06,1.18462691]
[1729089105718,3.2227,155.16,155.11,3.2235]
[1729089106020,1.4418,155.18,155.01,6.4511]
[1729089106213,1.4418,155.18,155.04,29.6]
[1729089106412,1.4418,155.18,155.05,1.1846118]
[1729089106613,1.4418,155.18,155.07,29.6]
[1729089106819,1.4474,155.19,155.08,7.7846118]
[1729089107120,1.4474,155.19,155.09,1.1846118]
[1729089107720,3.2223,155.18,155.13,3.2231]
[1729089107914,1.4474,155.19,155.08,6.6]
[1729089108112,7.9192,155.23,155.11,29.6]
[1729089108319,7.9192,155.23,155.12,1.1844608]
[1729089108626,7.9192,155.23,155.13,6.6]
[1729089109520,7.9192,155.23,155.14,1.18416797]
[1729089109521,3.2215,155.22,155.14,1.18416797]
[1729089109924,1.3192,155.23,155.14,1.18416797]
[1729089110115,1.3192,155.23,155.19,3.2219]
[1729089110311,2.8391,155.25,155.17,3.16354146]
[1729089110624,1.4125,155.25,155.21,3.2215]
[1729089110925,6.6,155.28,155.2,3.21348025]
[1729089111125,3.22,155.29,155.23,3.2211]
[1729089111617,3.2207,155.26,155.2,3.2217]
[1729089111809,29.6,155.29,155.18,6.6]
[1729089112327,3.2207,155.26,155.2,3.2217]
[1729089112520,29.6,155.29,155.18,6.6]
[1729089112718,3.2209,155.25,155.19,3.2219]
[1729089112920,29.6,155.29,155.18,6.6]
[1729089113116,2.858,155.3,155.18,6.6]
[1729089113322,6.0778,155.3,155.25,3.2207]
[1729089114016,2.858,155.3,155.25,3.2207]
[1729089114319,3.2199,155.29,155.25,3.2207]
[1729089114520,2.858,155.3,155.24,3.2209]
[1729089114826,3.2194,155.32,155.23,6.6]
[1729089115024,29.6,155.36,155.27,3.2202]
[1729089115324,6.6,155.36,155.24,6.6]
[1729089115527,6.6,155.36,155.29,3.2198]
[1729089116032,3.219,155.34,155.29,3.2198]
[1729089116224,6.6,155.36,155.29,3.2198]
[1729089116522,3.22,155.29,155.24,6.6]
[1729089116823,31.0104,155.35,155.19,29.6]
[1729089117023,31.0104,155.35,155.24,3.2209]
[1729089117329,3.2201,155.29,155.24,3.2209]
[1729089117836,3.2193,155.32,155.24,3.2209]
[1729089118031,29.6,155.32,155.24,3.2209]
[1729089118330,3.2204,155.27,155.21,6.6]
[1729089118531,3.2204,155.27,155.16,29.6]
[1729089118832,3.2204,155.27,155.17,7.78365992]
[1729089119131,1.4474,155.3,155.18,1.18365992]
[1729089119337,1.4474,155.3,155.19,29.6]
[1729089119626,1.4474,155.3,155.25,3.2206]
[1729089120023,4.6671,155.3,155.26,3.2205]
[1729089120324,4.6671,155.3,155.23,6.6]
[1729089120628,1.4474,155.3,155.23,6.6]
[1729089120824,3.22,155.29,155.24,3.2208]
[1729089121023,1.4104,155.35,155.25,29.6]
[1729089121225,1.4104,155.35,155.25,32.76931796]
[1729089121425,2.7544,155.4,155.25,32.76931796]
[1729089121426,9.3544,155.4,155.25,32.76931796]
[1729089121624,10.7692,155.4,155.25,32.76931796]
[1729089121825,3.2183,155.37,155.32,3.2191]
[1729089122229,10.7692,155.4,155.3,6.6]
[1729089122633,3.2183,155.37,155.33,3.219]
[1729089122833,3.2183,155.37,155.3,6.6]
[1729089123334,3.2183,155.37,155.32,3.2191]
[1729089123627,3.2183,155.37,155.3,6.6]
[1729089124029,3.2187,155.35,155.25,32.76931796]
[1729089124226,10.7692,155.4,155.26,7.78310108]
[1729089124434,29.6,155.38,155.27,6.6]
[1729089124634,3.2192,155.33,155.28,3.22]
[1729089124836,29.6,155.38,155.27,6.6]
[1729089125134,29.6,155.38,155.27,9.87829869]
[1729089125337,3.219,155.34,155.29,3.2199]
[1729089125532,29.6,155.38,155.26,6.6]
[1729089125734,29.6,155.38,155.27,3.19234958]
[1729089126035,3.2188,155.35,155.3,3.2195]
[1729089126532,29.6,155.38,155.3,3.2195]
[1729089126737,10.7692,155.4,155.31,3.2193]
[1729089127435,3.2187,155.35,155.31,3.2193]
[1729089127735,10.7692,155.4,155.31,3.2193]
[1729089128038,3.2188,155.35,155.31,3.2193]
[1729089129332,3.2189,155.34,155.31,3.2193]
[1729089130237,29.6,155.37,155.2,6.4434]
[1729089130433,29.6,155.35,155.21,1.18335196]
[1729089130639,29.6,155.32,155.22,9.8212]
[1729089130835,4.2813,155.31,155.22,6.6]
[1729089131340,4.2813,155.31,155.24,3.2208]
[1729089131539,3.2202,155.28,155.24,3.2208]
[1729089131844,4.2813,155.31,155.16,32.89051448]
[1729089132031,4.2813,155.31,155.17,7.78373337]
[1729089132032,3.2204,155.27,155.17,7.78373337]
[1729089132233,2.8456,155.31,155.2,6.4434]
[1729089132435,37.6463,155.35,155.2,6.4434]
[1729089132634,3.2195,155.31,155.2,6.4434]
[1729089132839,37.6463,155.35,155.2,6.4434]
[1729089133229,3.2194,155.32,155.28,3.22]
[1729089133435,8.0463,155.35,155.27,3.19253058]
[1729089133638,8.0463,155.35,155.25,6.6]
[1729089134341,8.0463,155.35,155.27,3.2201]
[1729089135244,3.2195,155.32,155.27,3.2201]
[1729089135443,37.6463,155.35,155.19,29.6]
[1729089135739,3.22,155.29,155.2,6.6]
[1729089135943,1.4318,155.31,155.26,3.2205]
[1729089136250,37.6463,155.35,155.26,6.6]
[1729089136439,229.0,155.49,155.32,3.2193]
[1729089136640,2.8495,155.39,155.26,6.6]
[1729089136845,3.2191,155.34,155.26,6.6]
[1729089137037,3.2191,155.34,155.3,3.2196]
[1729089137233,1.3102,155.38,155.26,6.6]
[1729089137551,3.2195,155.31,155.26,6.6]
[1729089137737,3.2195,155.31,155.27,3.2202]
[1729089137938,30.9102,155.38,155.26,6.6]
[1729089138149,3.2194,155.32,155.26,6.6]
[1729089138337,3.2194,155.32,155.28,3.22]
[1729089138537,3.2189,155.34,155.26,6.6]
[1729089138740,7.9102,155.38,155.26,6.6]
[1729089139242,3.2186,155.36,155.29,3.2198]
[1729089139439,3.2186,155.36,155.26,6.6]
[1729089139841,3.2183,155.37,155.33,3.219]
[1729089140147,1.3102,155.38,155.26,6.6]
[1729089140343,3.2198,155.3,155.26,9.8205]
[1729089140550,1.3102,155.38,155.26,9.8205]
[1729089140551,1.3102,155.38,155.26,6.6]
[1729089140936,29.6,155.36,155.27,3.2203]
[1729089141151,29.6,155.36,155.26,6.6]
[1729089141342,6.6,155.35,155.19,29.6]
[1729089141541,3.2203,155.28,155.2,6.6]
[1729089141746,29.6,155.33,155.16,32.89051448]
[1729089142048,3.2204,155.27,155.23,3.2211]
[1729089142642,3.2202,155.28,155.23,3.2211]
[1729089142845,29.6,155.33,155.26,3.2204]
[1729089143042,29.6,155.36,155.23,6.6]
[1729089143247,3.2193,155.33,155.23,6.6]
[1729089143447,3.2193,155.33,155.28,3.2199]
[1729089143844,3.2196,155.31,155.25,3.19238412]
[1729089144143,36.2,155.36,155.23,6.6]
[1729089144351,29.6,155.33,155.16,32.89051448]
[1729089144856,6.6,155.32,155.18,6.6]
[1729089145043,3.2208,155.25,155.18,6.6]
[1729089145244,2.7498,155.31,155.21,3.2214]
[1729089145753,3.2206,155.26,155.22,3.2213]
[1729089146245,3.2203,155.28,155.23,3.221]
[1729089146449,3.2203,155.28,155.18,6.6]
[1729089146649,1.3639,155.3,155.18,6.6]
[1729089147253,3.2203,155.27,155.23,3.221]
[1729089147457,3.2203,155.27,155.18,6.6]
[1729089147458,1.3639,155.3,155.19,29.6]
[1729089147644,2.7498,155.31,155.21,29.6]
[1729089147845,2.7498,155.31,155.22,6.6]
[1729089148049,6.6,155.36,155.22,6.6]
[1729089148252,3.219,155.34,155.3,3.2196]
[1729089148748,3.219,155.34,155.29,3.2198]
[1729089148950,2.7034,155.35,155.27,6.6]
[1729089149144,2.7034,155.35,155.25,6.6]
[1729089149348,2.7034,155.35,155.27,3.2203]
[1729089149849,3.2194,155.32,155.27,3.2203]
[1729089150049,2.7034,155.35,155.28,3.2199]
[1729089150243,2.7034,155.35,155.25,6.6]
[1729089150446,3.2189,155.34,155.25,6.6]
[1729089150652,2.7034,155.35,155.31,3.2194]
[1729089150842,1.3619,155.38,155.3,6.6]
[1729089151044,2.7313,155.41,155.31,6.6]
[1729089151243,2.7313,155.41,155.32,29.6]
[1729089151752,2.7313,155.41,155.38,3.2179]
[1729089154059,2.7313,155.41,155.36,6.6]
[1729089154060,2.7313,155.41,155.39,3.2178]
[1729089154350,9.3313,155.41,155.26,6.6]
[1729089154556,9.3313,155.41,155.28,3.2201]
[1729089154557,29.6,155.38,155.28,3.2201]
[1729089154849,1.3684,155.37,155.23,65.82063654]
[1729089155056,6.6,155.36,155.26,3.2205]
[1729089155352,6.6,155.36,155.25,9.75516166]
[1729089155855,3.22,155.29,155.24,76.14]
[1729089156155,29.6,155.35,155.24,76.14]
[1729089156354,29.6,155.35,155.24,79.40336558]
[1729089156547,3.2197,155.31,155.26,3.2204]
[1729089156944,29.6,155.35,155.26,3.2204]
[1729089157154,29.6,155.35,155.24,79.40336558]
[1729089157350,29.6,155.32,155.18,29.6]
[1729089157654,29.6,155.29,155.16,72.83051448]
[1729089157851,7.9557,155.28,155.19,3.222]
[1729089158055,3.2207,155.26,155.19,3.222]
[1729089158256,7.9557,155.28,155.16,79.43051448]
[1729089159155,7.9557,155.28,155.17,3.2222]
[1729089159346,3.2213,155.23,155.16,79.30881443]
[1729089159557,7.9557,155.28,155.16,76.14]
[1729089159759,29.6,155.25,155.14,3.28382731]
[1729089160062,3.2216,155.21,155.14,6.6]
[1729089160359,29.6,155.25,155.17,3.2223]
[1729089160559,3.2215,155.22,155.17,3.2223]
[1729089162153,7.9557,155.28,155.2,3.2217]
[1729089162154,37.5557,155.28,155.2,3.2217]
[1729089162751,37.5557,155.28,155.21,3.2215]
[1729089163161,3.2209,155.25,155.21,3.2215]
[1729089163453,37.5557,155.28,155.21,3.2215]
[1729089163657,37.5557,155.28,155.15,6.6]
[1729089163854,3.2207,155.26,155.23,3.2211]
[1729089164254,3.2207,155.26,155.15,6.6]
[1729089164559,3.2204,155.27,155.15,36.2]
[1729089165059,37.5557,155.28,155.15,6.6]
[1729089165256,3.2216,155.21,155.15,6.6]